[Event "Late-Titled-Tuesday-Blitz-March-05-2024"]
[Site "Chess.com"]
[Date "2024.03.05"]
[Round "9"]
[White "ArtemDyachuk"]
[Black "toninhojit"]
[Result "1-0"]
[WhiteElo "2688"]
[BlackElo "2538"]
[TimeControl "180+1"]
[EndTime "15:41:13 PST"]
[Termination "ArtemDyachuk won by resignation"]

1. e4 {[%clk 0:03:00.9]} 1... e5 {[%clk 0:02:56.6]} 2. Nf3 {[%clk 0:02:57.7]}
2... Nc6 {[%clk 0:02:56.9]} 3. Bb5 {[%clk 0:02:56.8]} 3... Nf6 {[%clk
0:02:56.7]} 4. d3 {[%clk 0:02:55.1]} 4... Bc5 {[%clk 0:02:56]} 5. Bxc6 {[%clk
0:02:55.4]} 5... dxc6 {[%clk 0:02:55.4]} 6. Nbd2 {[%clk 0:02:56.3]} 6... Bd6
{[%clk 0:02:50.3]} 7. O-O {[%clk 0:02:54.7]} 7... Be6 {[%clk 0:02:39.1]} 8. b3
{[%clk 0:02:53.2]} 8... Nd7 {[%clk 0:02:38.2]} 9. Bb2 {[%clk 0:02:52.6]} 9... f6
{[%clk 0:02:38.4]} 10. d4 {[%clk 0:02:51.9]} 10... Qe7 {[%clk 0:02:32.8]} 11.
Re1 {[%clk 0:02:50.4]} 11... O-O-O {[%clk 0:02:29.5]} 12. Qe2 {[%clk 0:02:49.5]}
12... Bg4 {[%clk 0:02:29.3]} 13. h3 {[%clk 0:02:48.2]} 13... Bh5 {[%clk
0:02:29.7]} 14. Qe3 {[%clk 0:02:41.2]} 14... Kb8 {[%clk 0:02:23.8]} 15. Nf1
{[%clk 0:02:16.5]} 15... Bxf3 {[%clk 0:02:15.5]} 16. Qxf3 {[%clk 0:02:17.4]}
16... exd4 {[%clk 0:02:16.3]} 17. Bxd4 {[%clk 0:02:16.6]} 17... Be5 {[%clk
0:02:17]} 18. Bxe5 {[%clk 0:02:13.5]} 18... Nxe5 {[%clk 0:02:17.9]} 19. Qe2
{[%clk 0:02:13.7]} 19... Ng6 {[%clk 0:02:12.5]} 20. Ng3 {[%clk 0:02:11.5]} 20...
Qb4 {[%clk 0:02:03.5]} 21. Rad1 {[%clk 0:02:09.4]} 21... Ne5 {[%clk 0:01:50]}
22. Qe3 {[%clk 0:01:53.1]} 22... g6 {[%clk 0:01:41.6]} 23. Nf1 {[%clk
0:01:47.7]} 23... b6 {[%clk 0:01:31.1]} 24. a4 {[%clk 0:01:26]} 24... a5 {[%clk
0:01:27.4]} 25. Nd2 {[%clk 0:01:17]} 25... Qd4 {[%clk 0:01:16.6]} 26. Nf1 {[%clk
0:01:06.3]} 26... Qxe3 {[%clk 0:01:15.4]} 27. Nxe3 {[%clk 0:01:07.2]} 27... Kc8
{[%clk 0:01:11.7]} 28. Kf1 {[%clk 0:01:02.8]} 28... Rhe8 {[%clk 0:01:09.9]} 29.
Ke2 {[%clk 0:00:58.8]} 29... Nf7 {[%clk 0:01:03]} 30. f3 {[%clk 0:00:58.2]}
30... Ng5 {[%clk 0:00:57.9]} 31. Kf2 {[%clk 0:00:55.6]} 31... Ne6 {[%clk
0:00:57.3]} 32. Ng4 {[%clk 0:00:54.7]} 32... Rf8 {[%clk 0:00:54.6]} 33. e5
{[%clk 0:00:53.7]} 33... f5 {[%clk 0:00:43.1]} 34. Nf6 {[%clk 0:00:52.3]} 34...
Rf7 {[%clk 0:00:43.6]} 35. h4 {[%clk 0:00:41.3]} 35... f4 {[%clk 0:00:33.8]} 36.
Rxd8+ {[%clk 0:00:39.2]} 36... Kxd8 {[%clk 0:00:34.1]} 37. Rd1+ {[%clk
0:00:39.6]} 37... Kc8 {[%clk 0:00:34.7]} 38. Ne4 {[%clk 0:00:28.9]} 38... Re7
{[%clk 0:00:31.7]} 39. Nf6 {[%clk 0:00:28.3]} 39... Nf8 {[%clk 0:00:28.3]} 40.
Re1 {[%clk 0:00:26.7]} 40... Nd7 {[%clk 0:00:28.5]} 41. Nxd7 {[%clk 0:00:23.9]}
41... Kxd7 {[%clk 0:00:29]} 42. Re4 {[%clk 0:00:24.4]} 42... Ke6 {[%clk
0:00:26.7]} 43. Rxf4 {[%clk 0:00:24]} 43... Kxe5 {[%clk 0:00:20.1]} 44. Re4+
{[%clk 0:00:24.5]} 44... Kf6 {[%clk 0:00:20.8]} 45. Rxe7 {[%clk 0:00:25.4]}
45... Kxe7 {[%clk 0:00:21.7]} 46. Ke3 {[%clk 0:00:25.7]} 46... Ke6 {[%clk
0:00:21.6]} 47. Ke4 {[%clk 0:00:25.8]} 47... h6 {[%clk 0:00:17.7]} 48. f4 {[%clk
0:00:25.3]} 48... Kf6 {[%clk 0:00:18.1]} 49. g4 {[%clk 0:00:25.8]} 49... h5
{[%clk 0:00:17.2]} 50. g5+ {[%clk 0:00:21.2]} 50... Ke7 {[%clk 0:00:14.7]} 51.
f5 {[%clk 0:00:20.8]} 51... Kf7 {[%clk 0:00:14.6]} 52. Ke5 {[%clk 0:00:20.4]}
52... c5 {[%clk 0:00:11.3]} 53. fxg6+ {[%clk 0:00:19.9]} 1-0

[Event "Late-Titled-Tuesday-Blitz-March-05-2024"]
[Site "Chess.com"]
[Date "2024.03.05"]
[Round "9"]
[White "Cambek64"]
[Black "fandebobbyfischer"]
[Result "1/2-1/2"]
[WhiteElo "2485"]
[BlackElo "2636"]
[TimeControl "180+1"]
[EndTime "15:41:14 PST"]
[Termination "Game drawn by repetition"]

1. d4 {[%clk 0:02:40.3]} 1... Nf6 {[%clk 0:02:44.8]} 2. Nf3 {[%clk 0:02:38]}
2... g6 {[%clk 0:02:44.9]} 3. h3 {[%clk 0:02:35.6]} 3... Bg7 {[%clk 0:02:45]} 4.
c3 {[%clk 0:02:35.8]} 4... O-O {[%clk 0:02:45.6]} 5. Bf4 {[%clk 0:02:36.1]} 5...
d6 {[%clk 0:02:46.5]} 6. e3 {[%clk 0:02:36.2]} 6... c5 {[%clk 0:02:47.2]} 7. Be2
{[%clk 0:02:35.5]} 7... Nc6 {[%clk 0:02:47.2]} 8. O-O {[%clk 0:02:35.3]} 8...
cxd4 {[%clk 0:02:47.7]} 9. cxd4 {[%clk 0:02:33.6]} 9... Re8 {[%clk 0:02:48.6]}
10. Nc3 {[%clk 0:02:31.3]} 10... Bd7 {[%clk 0:02:47.4]} 11. a3 {[%clk
0:02:26.3]} 11... Rc8 {[%clk 0:02:46.2]} 12. Rc1 {[%clk 0:02:21.1]} 12... Na5
{[%clk 0:02:37.7]} 13. Nd2 {[%clk 0:02:15.5]} 13... Be6 {[%clk 0:02:23]} 14. b4
{[%clk 0:01:58.5]} 14... Nc4 {[%clk 0:02:17.8]} 15. Nxc4 {[%clk 0:01:40.2]}
15... Bxc4 {[%clk 0:02:18.7]} 16. Bg5 {[%clk 0:01:25.3]} 16... d5 {[%clk
0:01:05.2]} 17. Bxf6 {[%clk 0:01:19.7]} 17... Bxf6 {[%clk 0:01:04.1]} 18. Bxc4
{[%clk 0:01:13.5]} 18... Rxc4 {[%clk 0:01:05]} 19. Qb3 {[%clk 0:01:03.8]} 19...
e6 {[%clk 0:01:02.2]} 20. Na4 {[%clk 0:01:01.9]} 20... b5 {[%clk 0:01:00.9]} 21.
Nb2 {[%clk 0:01:00.6]} 21... Rxc1 {[%clk 0:00:57.4]} 22. Rxc1 {[%clk 0:01:01.1]}
22... Be7 {[%clk 0:00:57.1]} 23. Qc3 {[%clk 0:00:54.5]} 23... Bd6 {[%clk
0:00:52.2]} 24. Nd3 {[%clk 0:00:54.7]} 24... Qb6 {[%clk 0:00:50.4]} 25. Qc6
{[%clk 0:00:39]} 25... Rd8 {[%clk 0:00:50.1]} 26. f4 {[%clk 0:00:34.6]} 26...
Qb8 {[%clk 0:00:48]} 27. Ne5 {[%clk 0:00:27.5]} 27... Bxe5 {[%clk 0:00:47.6]}
28. fxe5 {[%clk 0:00:27]} 28... Qb6 {[%clk 0:00:29.6]} 29. Rc5 {[%clk
0:00:24.5]} 29... Rb8 {[%clk 0:00:27.5]} 30. Qd7 {[%clk 0:00:23]} 30... Rd8
{[%clk 0:00:19.1]} 31. Qc7 {[%clk 0:00:17.9]} 31... Rb8 {[%clk 0:00:18.5]} 32.
Qe7 {[%clk 0:00:17.9]} 32... Qa6 {[%clk 0:00:16.4]} 33. Rc3 {[%clk 0:00:15.5]}
33... Rc8 {[%clk 0:00:15.4]} 34. Rxc8+ {[%clk 0:00:13.8]} 34... Qxc8 {[%clk
0:00:16.3]} 35. Qc5 {[%clk 0:00:12.7]} 35... Qa6 {[%clk 0:00:16.6]} 36. Kh2
{[%clk 0:00:09.2]} 36... Qa4 {[%clk 0:00:15.7]} 37. Qe7 {[%clk 0:00:08.4]} 37...
Qb3 {[%clk 0:00:14.2]} 38. Qd8+ {[%clk 0:00:08.7]} 38... Kg7 {[%clk 0:00:14.4]}
39. Qf6+ {[%clk 0:00:09]} 39... Kg8 {[%clk 0:00:14.9]} 40. Qd8+ {[%clk
0:00:08.9]} 40... Kg7 {[%clk 0:00:14.8]} 41. Qf6+ {[%clk 0:00:09.3]} 41... Kh6
{[%clk 0:00:14.5]} 42. Qh4+ {[%clk 0:00:06.5]} 42... Kg7 {[%clk 0:00:14.8]} 43.
Qf6+ {[%clk 0:00:04.5]} 1/2-1/2

[Event "Late-Titled-Tuesday-Blitz-March-05-2024"]
[Site "Chess.com"]
[Date "2024.03.05"]
[Round "9"]
[White "Igor_Lysyj"]
[Black "nindjaxx8"]
[Result "1/2-1/2"]
[WhiteElo "2835"]
[BlackElo "2709"]
[TimeControl "180+1"]
[EndTime "15:41:16 PST"]
[Termination "Game drawn by repetition"]

1. d4 {[%clk 0:02:59.4]} 1... d5 {[%clk 0:02:50.6]} 2. c4 {[%clk 0:02:58.9]}
2... e6 {[%clk 0:02:48.5]} 3. Nf3 {[%clk 0:02:58.2]} 3... Nf6 {[%clk 0:02:45.9]}
4. g3 {[%clk 0:02:58.3]} 4... Be7 {[%clk 0:02:45.1]} 5. Bg2 {[%clk 0:02:57.8]}
5... O-O {[%clk 0:02:45.7]} 6. O-O {[%clk 0:02:56.7]} 6... b6 {[%clk 0:02:46]}
7. cxd5 {[%clk 0:02:55.9]} 7... exd5 {[%clk 0:02:45.9]} 8. Nc3 {[%clk
0:02:55.2]} 8... Bb7 {[%clk 0:02:45.7]} 9. Bf4 {[%clk 0:02:54.3]} 9... c6 {[%clk
0:02:43.2]} 10. Qc2 {[%clk 0:02:52.1]} 10... Nbd7 {[%clk 0:02:38.6]} 11. Rad1
{[%clk 0:02:51.2]} 11... Rc8 {[%clk 0:02:37.1]} 12. Ne5 {[%clk 0:02:45.4]} 12...
Re8 {[%clk 0:02:34.3]} 13. Qb3 {[%clk 0:02:40.8]} 13... Nf8 {[%clk 0:02:24]} 14.
e4 {[%clk 0:02:07.9]} 14... Ne6 {[%clk 0:02:11.9]} 15. Be3 {[%clk 0:02:07.3]}
15... dxe4 {[%clk 0:01:45.9]} 16. Nxe4 {[%clk 0:02:07]} 16... Nxe4 {[%clk
0:01:45.2]} 17. Bxe4 {[%clk 0:02:06.8]} 17... Bf6 {[%clk 0:01:45.9]} 18. Qc2
{[%clk 0:01:55.6]} 18... h6 {[%clk 0:01:38.6]} 19. Rfe1 {[%clk 0:01:33.1]} 19...
Bxe5 {[%clk 0:01:34.3]} 20. dxe5 {[%clk 0:01:33.1]} 20... Qe7 {[%clk 0:01:35.2]}
21. Qc1 {[%clk 0:01:12.7]} 21... Rcd8 {[%clk 0:01:00.4]} 22. Rxd8 {[%clk
0:00:33.3]} 22... Rxd8 {[%clk 0:00:59.3]} 23. Rd1 {[%clk 0:00:33]} 23... c5
{[%clk 0:00:46.6]} 24. Bxb7 {[%clk 0:00:30.7]} 24... Qxb7 {[%clk 0:00:46.1]} 25.
Rxd8+ {[%clk 0:00:30.1]} 25... Nxd8 {[%clk 0:00:46.1]} 26. Qd2 {[%clk
0:00:29.4]} 26... Ne6 {[%clk 0:00:46]} 27. f4 {[%clk 0:00:27.2]} 27... Qe4
{[%clk 0:00:45.1]} 28. Bf2 {[%clk 0:00:26]} 28... h5 {[%clk 0:00:41.8]} 29. Qe1
{[%clk 0:00:22.1]} 29... Qd5 {[%clk 0:00:41.7]} 30. Qe2 {[%clk 0:00:15]} 30...
h4 {[%clk 0:00:37]} 31. Qg4 {[%clk 0:00:14.6]} 31... hxg3 {[%clk 0:00:22.2]} 32.
hxg3 {[%clk 0:00:14.7]} 32... Qxa2 {[%clk 0:00:21.4]} 33. f5 {[%clk 0:00:14.6]}
33... Nd4 {[%clk 0:00:14.5]} 34. Bxd4 {[%clk 0:00:13.8]} 34... cxd4 {[%clk
0:00:12.3]} 35. f6 {[%clk 0:00:11.9]} 35... Qb1+ {[%clk 0:00:11]} 36. Kg2 {[%clk
0:00:09.4]} 36... Qc2+ {[%clk 0:00:08.9]} 37. Kg1 {[%clk 0:00:07.4]} 37... Qc1+
{[%clk 0:00:07.2]} 38. Kh2 {[%clk 0:00:06.9]} 38... Qh6+ {[%clk 0:00:07.1]} 39.
Kg2 {[%clk 0:00:05.8]} 39... d3 {[%clk 0:00:06.8]} 40. Qc8+ {[%clk 0:00:05.3]}
40... Kh7 {[%clk 0:00:06.8]} 41. Qf5+ {[%clk 0:00:05.5]} 41... Qg6 {[%clk
0:00:07]} 42. Qh3+ {[%clk 0:00:05.3]} 42... Qh6 {[%clk 0:00:07.3]} 43. Qf5+
{[%clk 0:00:05.3]} 43... Qg6 {[%clk 0:00:07.8]} 44. Qh3+ {[%clk 0:00:05.4]}
44... Qh6 {[%clk 0:00:06]} 45. Qf5+ {[%clk 0:00:04.2]} 1/2-1/2

[Event "Late-Titled-Tuesday-Blitz-March-05-2024"]
[Site "Chess.com"]
[Date "2024.03.05"]
[Round "9"]
[White "Zadar321"]
[Black "IMRosen"]
[Result "1-0"]
[WhiteElo "2551"]
[BlackElo "2657"]
[TimeControl "180+1"]
[EndTime "15:41:22 PST"]
[Termination "Zadar321 won on time"]

1. e4 {[%clk 0:03:00.9]} 1... c5 {[%clk 0:02:55.8]} 2. Nf3 {[%clk 0:02:58.5]}
2... Nc6 {[%clk 0:02:55.5]} 3. d4 {[%clk 0:02:54.8]} 3... cxd4 {[%clk
0:02:56.4]} 4. Nxd4 {[%clk 0:02:53]} 4... g6 {[%clk 0:02:55.7]} 5. Nc3 {[%clk
0:02:50]} 5... Bg7 {[%clk 0:02:54.9]} 6. Be3 {[%clk 0:02:46.7]} 6... Nf6 {[%clk
0:02:53]} 7. Bc4 {[%clk 0:02:44.5]} 7... O-O {[%clk 0:02:53.1]} 8. Bb3 {[%clk
0:02:39.5]} 8... Re8 {[%clk 0:02:53.4]} 9. f3 {[%clk 0:02:32.1]} 9... e6 {[%clk
0:02:53.4]} 10. f4 {[%clk 0:02:27.2]} 10... Nd5 {[%clk 0:02:53]} 11. exd5 {[%clk
0:02:20]} 11... exd5 {[%clk 0:02:52.3]} 12. O-O {[%clk 0:02:12.3]} 12... Rxe3
{[%clk 0:02:50.5]} 13. Ndb5 {[%clk 0:02:04.8]} 13... d4 {[%clk 0:02:50.7]} 14.
Nd5 {[%clk 0:02:00.1]} 14... Rxb3 {[%clk 0:02:50.6]} 15. axb3 {[%clk 0:01:54.6]}
15... d6 {[%clk 0:02:51]} 16. Kh1 {[%clk 0:01:45.8]} 16... Bf5 {[%clk
0:02:35.7]} 17. Re1 {[%clk 0:01:41.3]} 17... a6 {[%clk 0:02:32.8]} 18. Nbc7
{[%clk 0:01:36.9]} 18... Rc8 {[%clk 0:02:26.9]} 19. Re8+ {[%clk 0:01:33.1]}
19... Qxe8 {[%clk 0:02:21.5]} 20. Nxe8 {[%clk 0:01:33.2]} 20... Rxe8 {[%clk
0:02:21.4]} 21. b4 {[%clk 0:01:30.7]} 21... Be4 {[%clk 0:01:57.3]} 22. Qe2
{[%clk 0:01:26.9]} 22... Kf8 {[%clk 0:01:50]} 23. Qc4 {[%clk 0:01:23.7]} 23...
Rc8 {[%clk 0:01:37.2]} 24. Re1 {[%clk 0:01:19.1]} 24... Ne7 {[%clk 0:01:20.1]}
25. Qxc8+ {[%clk 0:01:14.6]} 25... Nxc8 {[%clk 0:01:20.3]} 26. Rxe4 {[%clk
0:01:15.1]} 26... f5 {[%clk 0:00:38.3]} 27. Re1 {[%clk 0:01:13.6]} 27... Kf7
{[%clk 0:00:38.3]} 28. g3 {[%clk 0:01:07.2]} 28... Bf8 {[%clk 0:00:36.6]} 29.
Kg2 {[%clk 0:01:03.8]} 29... Na7 {[%clk 0:00:36.8]} 30. Kf3 {[%clk 0:00:59.9]}
30... Nc6 {[%clk 0:00:37.4]} 31. c3 {[%clk 0:00:54.7]} 31... dxc3 {[%clk
0:00:23.2]} 32. bxc3 {[%clk 0:00:55.6]} 32... Bg7 {[%clk 0:00:23.7]} 33. g4
{[%clk 0:00:46.4]} 33... fxg4+ {[%clk 0:00:21.7]} 34. Kxg4 {[%clk 0:00:45.1]}
34... Bf8 {[%clk 0:00:12.8]} 35. Kf3 {[%clk 0:00:40.4]} 35... Bg7 {[%clk
0:00:12.8]} 36. h4 {[%clk 0:00:34.8]} 36... h5 {[%clk 0:00:12]} 37. f5 {[%clk
0:00:31.7]} 37... Ne5+ {[%clk 0:00:09.6]} 38. Ke4 {[%clk 0:00:26.6]} 38... gxf5+
{[%clk 0:00:04.6]} 39. Kxf5 {[%clk 0:00:23.8]} 39... Bh6 {[%clk 0:00:02.4]} 40.
Ke4 {[%clk 0:00:19.7]} 40... Ke6 {[%clk 0:00:02.3]} 41. Rf1 {[%clk 0:00:19]}
41... Ng4 {[%clk 0:00:02.4]} 42. Nf4+ {[%clk 0:00:13.5]} 42... Kd7 {[%clk
0:00:02.1]} 43. Nxh5 {[%clk 0:00:10.9]} 43... Ke6 {[%clk 0:00:02.3]} 44. Nf4+
{[%clk 0:00:10.5]} 44... Kd7 {[%clk 0:00:01.8]} 45. Nd5 {[%clk 0:00:10.9]} 45...
Ke6 {[%clk 0:00:02]} 46. h5 {[%clk 0:00:10.2]} 46... Bg7 {[%clk 0:00:02]} 47.
Nf4+ {[%clk 0:00:09.6]} 47... Kd7 {[%clk 0:00:01.9]} 48. Rf3 {[%clk 0:00:08.9]}
48... Nf6+ {[%clk 0:00:01.8]} 49. Kf5 {[%clk 0:00:08.4]} 1-0

[Event "Late-Titled-Tuesday-Blitz-March-05-2024"]
[Site "Chess.com"]
[Date "2024.03.05"]
[Round "9"]
[White "ckgchess"]
[Black "Harry_Rakkel"]
[Result "0-1"]
[WhiteElo "2910"]
[BlackElo "2726"]
[TimeControl "180+1"]
[EndTime "15:41:23 PST"]
[Termination "Harry_Rakkel won by checkmate"]

1. e4 {[%clk 0:02:43.5]} 1... c5 {[%clk 0:02:58.5]} 2. c3 {[%clk 0:02:43.7]}
2... Nf6 {[%clk 0:02:57.3]} 3. e5 {[%clk 0:02:43.9]} 3... Nd5 {[%clk 0:02:56.7]}
4. d4 {[%clk 0:02:44.8]} 4... cxd4 {[%clk 0:02:55.8]} 5. Bc4 {[%clk 0:02:45]}
5... e6 {[%clk 0:02:53.6]} 6. cxd4 {[%clk 0:02:45]} 6... Nb6 {[%clk 0:02:48]} 7.
Bd3 {[%clk 0:02:40.8]} 7... Nc6 {[%clk 0:02:47.1]} 8. Nf3 {[%clk 0:02:41]} 8...
h6 {[%clk 0:02:45.7]} 9. O-O {[%clk 0:02:40.9]} 9... d5 {[%clk 0:02:45]} 10. Nc3
{[%clk 0:02:40.3]} 10... Bd7 {[%clk 0:02:42.9]} 11. Be3 {[%clk 0:02:40.1]} 11...
Nb4 {[%clk 0:02:34.6]} 12. Bb1 {[%clk 0:02:39.2]} 12... a5 {[%clk 0:02:32.4]}
13. a3 {[%clk 0:02:38.7]} 13... Nc6 {[%clk 0:02:30.3]} 14. Nd2 {[%clk
0:02:37.4]} 14... a4 {[%clk 0:02:27.1]} 15. Qg4 {[%clk 0:02:30.6]} 15... Na5
{[%clk 0:02:22.7]} 16. Bd3 {[%clk 0:02:18.5]} 16... Rc8 {[%clk 0:01:47.3]} 17.
Nb5 {[%clk 0:02:02.5]} 17... Nac4 {[%clk 0:01:26.4]} 18. Bxc4 {[%clk 0:02:01.9]}
18... Nxc4 {[%clk 0:01:25.3]} 19. Nxc4 {[%clk 0:02:02.1]} 19... Bxb5 {[%clk
0:01:22.9]} 20. Nd6+ {[%clk 0:02:01.4]} 20... Bxd6 {[%clk 0:01:21]} 21. Qxg7
{[%clk 0:02:01.4]} 21... Kd7 {[%clk 0:01:13.9]} 22. exd6 {[%clk 0:01:58.9]}
22... Bxf1 {[%clk 0:01:07.7]} 23. Qxf7+ {[%clk 0:01:58.1]} 23... Kc6 {[%clk
0:01:00.1]} 24. Qxe6 {[%clk 0:01:01.8]} 24... Qxd6 {[%clk 0:00:54.2]} 25. Qxd6+
{[%clk 0:00:41.1]} 25... Kxd6 {[%clk 0:00:55.1]} 26. Rxf1 {[%clk 0:00:40.2]}
26... Rc2 {[%clk 0:00:55.7]} 27. Rb1 {[%clk 0:00:40.3]} 27... h5 {[%clk
0:00:52]} 28. h4 {[%clk 0:00:40.3]} 28... Rhc8 {[%clk 0:00:51.8]} 29. g3 {[%clk
0:00:39.6]} 29... R8c6 {[%clk 0:00:51.8]} 30. Kg2 {[%clk 0:00:39.5]} 30... Rb6
{[%clk 0:00:51.5]} 31. Bc1 {[%clk 0:00:33.8]} 31... Rb3 {[%clk 0:00:49.4]} 32.
Kf1 {[%clk 0:00:31.5]} 32... b5 {[%clk 0:00:47.1]} 33. Ke1 {[%clk 0:00:30.3]}
33... Kc6 {[%clk 0:00:45.6]} 34. Kf1 {[%clk 0:00:27.1]} 34... b4 {[%clk
0:00:43.9]} 35. axb4 {[%clk 0:00:28]} 35... a3 {[%clk 0:00:44.1]} 36. g4 {[%clk
0:00:20.8]} 36... hxg4 {[%clk 0:00:41.4]} 37. h5 {[%clk 0:00:21.7]} 37... axb2
{[%clk 0:00:38.2]} 38. Bg5 {[%clk 0:00:19.7]} 38... Rh3 {[%clk 0:00:36.3]} 39.
Kg2 {[%clk 0:00:18.1]} 39... Rxh5 {[%clk 0:00:35.8]} 40. Be3 {[%clk 0:00:18.7]}
40... Rh3 {[%clk 0:00:35.4]} 41. Bg5 {[%clk 0:00:12.2]} 41... Kb5 {[%clk
0:00:34.3]} 42. Bf4 {[%clk 0:00:09.9]} 42... Rf3 {[%clk 0:00:33.7]} 43. Bg3
{[%clk 0:00:08.4]} 43... Kxb4 {[%clk 0:00:33.9]} 44. Bh4 {[%clk 0:00:03.8]}
44... Kb3 {[%clk 0:00:33.3]} 45. Re1 {[%clk 0:00:03.9]} 45... Rc1 {[%clk
0:00:32.7]} 46. Re8 {[%clk 0:00:04.7]} 46... b1=Q {[%clk 0:00:32.6]} 47. Rb8+
{[%clk 0:00:05.5]} 47... Kc4 {[%clk 0:00:32.4]} 48. Rxb1 {[%clk 0:00:06.4]}
48... Rxb1 {[%clk 0:00:32.5]} 49. Bg3 {[%clk 0:00:06.9]} 49... Kxd4 {[%clk
0:00:32.7]} 50. Bh4 {[%clk 0:00:06.5]} 50... Ke4 {[%clk 0:00:33]} 51. Bg3 {[%clk
0:00:07]} 51... d4 {[%clk 0:00:33.3]} 52. Bh4 {[%clk 0:00:07]} 52... d3 {[%clk
0:00:33.7]} 53. Bg5 {[%clk 0:00:07.7]} 53... Rd1 {[%clk 0:00:32.4]} 54. Bh6
{[%clk 0:00:07.9]} 54... d2 {[%clk 0:00:32.3]} 55. Bg5 {[%clk 0:00:06.4]} 55...
Kd3 {[%clk 0:00:32]} 56. Bh6 {[%clk 0:00:06.5]} 56... Re1 {[%clk 0:00:32.1]} 57.
Bxd2 {[%clk 0:00:06.7]} 57... Kxd2 {[%clk 0:00:32.2]} 58. Kh2 {[%clk 0:00:07.1]}
58... Re2 {[%clk 0:00:31.4]} 59. Kg1 {[%clk 0:00:07.2]} 59... Rexf2 {[%clk
0:00:31.3]} 60. Kh1 {[%clk 0:00:07.6]} 60... Re2 {[%clk 0:00:31.6]} 61. Kg1
{[%clk 0:00:07.9]} 61... g3 {[%clk 0:00:31.6]} 62. Kh1 {[%clk 0:00:07.9]} 62...
Rf1# {[%clk 0:00:31.8]} 0-1

[Event "Late-Titled-Tuesday-Blitz-March-05-2024"]
[Site "Chess.com"]
[Date "2024.03.05"]
[Round "9"]
[White "AccioChess"]
[Black "Crazy_girl99"]
[Result "0-1"]
[WhiteElo "2420"]
[BlackElo "2576"]
[TimeControl "180+1"]
[EndTime "15:41:24 PST"]
[Termination "Crazy_girl99 won on time"]

1. e4 {[%clk 0:02:50.3]} 1... e5 {[%clk 0:02:59.8]} 2. Nf3 {[%clk 0:02:49.7]}
2... Nc6 {[%clk 0:03:00.6]} 3. Bb5 {[%clk 0:02:49]} 3... a6 {[%clk 0:03:00.8]}
4. Ba4 {[%clk 0:02:49]} 4... Nf6 {[%clk 0:03:01.1]} 5. O-O {[%clk 0:02:48.6]}
5... Nxe4 {[%clk 0:03:01.4]} 6. d4 {[%clk 0:02:48]} 6... b5 {[%clk 0:03:02.2]}
7. Bb3 {[%clk 0:02:48]} 7... d5 {[%clk 0:03:03]} 8. dxe5 {[%clk 0:02:47.9]} 8...
Be6 {[%clk 0:03:03.7]} 9. Nbd2 {[%clk 0:02:47.5]} 9... Be7 {[%clk 0:03:04.1]}
10. c3 {[%clk 0:02:47.1]} 10... Nc5 {[%clk 0:03:04.8]} 11. Bc2 {[%clk
0:02:46.8]} 11... d4 {[%clk 0:03:05.3]} 12. Nb3 {[%clk 0:02:43.5]} 12... d3
{[%clk 0:03:04.9]} 13. Bb1 {[%clk 0:02:43.4]} 13... Nxb3 {[%clk 0:03:03.5]} 14.
axb3 {[%clk 0:02:43.1]} 14... Bf5 {[%clk 0:03:03.2]} 15. h3 {[%clk 0:02:35.2]}
15... O-O {[%clk 0:03:02.3]} 16. Re1 {[%clk 0:02:35.3]} 16... a5 {[%clk
0:02:55.6]} 17. Be3 {[%clk 0:02:30.4]} 17... Qd5 {[%clk 0:02:54.9]} 18. Nd4
{[%clk 0:02:23.1]} 18... Nxd4 {[%clk 0:02:37.7]} 19. cxd4 {[%clk 0:02:24]} 19...
Bb4 {[%clk 0:02:33.3]} 20. Rf1 {[%clk 0:02:14.3]} 20... Qe4 {[%clk 0:02:16.7]}
21. Qh5 {[%clk 0:01:48.7]} 21... Bg6 {[%clk 0:02:00.6]} 22. Qg4 {[%clk
0:01:41.4]} 22... Qd5 {[%clk 0:01:54.6]} 23. f4 {[%clk 0:01:24.1]} 23... c5
{[%clk 0:01:26.7]} 24. f5 {[%clk 0:01:23.2]} 24... h5 {[%clk 0:01:13.3]} 25. Qf4
{[%clk 0:01:13.2]} 25... cxd4 {[%clk 0:01:10.2]} 26. Bxd4 {[%clk 0:01:04.4]}
26... Bxf5 {[%clk 0:01:07.9]} 27. Qxf5 {[%clk 0:00:52]} 27... Qxd4+ {[%clk
0:01:06.5]} 28. Kh1 {[%clk 0:00:52.3]} 28... Rad8 {[%clk 0:01:03.1]} 29. Qxh5
{[%clk 0:00:24.9]} 29... Qxb2 {[%clk 0:00:58.9]} 30. Ra2 {[%clk 0:00:20.3]}
30... Qxb3 {[%clk 0:00:53.8]} 31. Raf2 {[%clk 0:00:19.5]} 31... g6 {[%clk
0:00:44.5]} 32. Qg4 {[%clk 0:00:18.3]} 32... Qe6 {[%clk 0:00:26.6]} 33. Qg3
{[%clk 0:00:18.2]} 33... Rd5 {[%clk 0:00:23.4]} 34. Rf6 {[%clk 0:00:13.7]} 34...
Qxe5 {[%clk 0:00:20.9]} 35. Rxg6+ {[%clk 0:00:13.8]} 35... fxg6 {[%clk
0:00:21.3]} 36. Qxg6+ {[%clk 0:00:14.1]} 36... Qg7 {[%clk 0:00:21.5]} 37. Qe6+
{[%clk 0:00:14.2]} 37... Kh8 {[%clk 0:00:20]} 38. Rxf8+ {[%clk 0:00:13]} 38...
Qxf8 {[%clk 0:00:19.9]} 39. Qxd5 {[%clk 0:00:12.3]} 39... Qf1+ {[%clk
0:00:19.7]} 40. Kh2 {[%clk 0:00:12.5]} 40... Qxb1 {[%clk 0:00:20.3]} 41. Qh5+
{[%clk 0:00:10.5]} 41... Kg7 {[%clk 0:00:20.5]} 42. Qg5+ {[%clk 0:00:10.7]}
42... Kf7 {[%clk 0:00:21]} 43. Qf5+ {[%clk 0:00:11.1]} 43... Ke7 {[%clk
0:00:21.5]} 44. Qe5+ {[%clk 0:00:11.3]} 44... Kd7 {[%clk 0:00:22.1]} 45. Qxb5+
{[%clk 0:00:11.3]} 45... Ke6 {[%clk 0:00:21.5]} 46. Qe8+ {[%clk 0:00:09.4]}
46... Kd5 {[%clk 0:00:21.5]} 47. Qf7+ {[%clk 0:00:09.4]} 47... Kd4 {[%clk
0:00:21.8]} 48. Qf6+ {[%clk 0:00:09.3]} 48... Kc4 {[%clk 0:00:22.2]} 49. Qf7+
{[%clk 0:00:09.7]} 49... Kc3 {[%clk 0:00:22.7]} 50. Qf6+ {[%clk 0:00:10]} 50...
Kc2 {[%clk 0:00:22.8]} 51. h4 {[%clk 0:00:08.6]} 51... Qb2 {[%clk 0:00:22.1]}
52. Qf5 {[%clk 0:00:07.8]} 52... Qd4 {[%clk 0:00:21.6]} 53. h5 {[%clk
0:00:07.5]} 53... Bd6+ {[%clk 0:00:21.9]} 54. Kh3 {[%clk 0:00:07]} 54... Qf4
{[%clk 0:00:20.7]} 55. Qc8+ {[%clk 0:00:04.1]} 55... Kd1 {[%clk 0:00:20.4]} 56.
Qg4+ {[%clk 0:00:01.4]} 56... Qxg4+ {[%clk 0:00:20.9]} 57. Kxg4 {[%clk 0:00:02]}
57... d2 {[%clk 0:00:21.5]} 58. h6 {[%clk 0:00:02.1]} 58... Ke1 {[%clk
0:00:22.1]} 59. h7 {[%clk 0:00:01.6]} 59... d1=Q+ {[%clk 0:00:22.5]} 60. Kf5
{[%clk 0:00:01.2]} 60... Qh5+ {[%clk 0:00:22.7]} 0-1